bitfinex/quotes_SOLUSD_20251103
["timestamp","ask_amount","ask_price","bid_price","bid_amount"]
[1762162320728,6.37477952,175.91,175.81,9.78882769]
[1762162320927,55.3,175.9,175.81,9.78882769]
[1762162321135,11.76,175.89,175.82,20.592]
[1762162321312,12.44,175.89,175.82,20.592]
[1762162321508,0.68,175.88,175.82,20.592]
[1762162322314,0.68,175.88,175.84,20.592]
[1762162323019,0.68,175.88,175.79,9.78882769]
[1762162323224,0.68,175.88,175.82,20.592]
[1762162323822,6.36589789,175.88,175.78,11.76]
[1762162324023,75.88013486,175.88,175.74,15.47903716]
[1762162324221,73.08,175.87,175.75,11.76]
[1762162324639,17.1,175.85,175.7,6.34580828]
[1762162324937,17.1,175.84,175.75,20.592]
[1762162325140,17.1,175.84,175.72,9.78882769]
[1762162325141,11.76,175.83,175.72,16.13463597]
[1762162325329,12.44,175.83,175.72,16.13463597]
[1762162325534,0.68,175.82,175.75,20.592]
[1762162325934,11.76,175.81,175.76,20.592]
[1762162326326,0.68,175.8,175.76,20.592]
[1762162326842,0.68,175.8,175.75,20.592]
[1762162327135,0.68,175.8,175.7,11.76]
[1762162327336,0.68,175.8,175.73,20.592]
[1762162327524,11.76,175.79,175.74,20.592]
[1762162327923,0.68,175.78,175.74,20.592]
[1762162328217,0.68,175.78,175.73,20.592]
[1762162328629,0.68,175.78,175.68,6.34580828]
[1762162328831,0.68,175.78,175.69,6.34580828]
[1762162329037,0.68,175.78,175.71,20.592]
[1762162329222,0.68,175.78,175.72,20.592]
[1762162329921,0.68,175.78,175.73,20.592]
[1762162330533,0.68,175.78,175.72,20.592]
[1762162331343,0.68,175.78,175.69,12.03760422]
[1762162331344,0.68,175.78,175.73,20.592]
[1762162332036,0.68,175.78,175.72,26.93780828]
[1762162332840,0.68,175.78,175.72,20.592]
[1762162333140,61.66906096,175.78,175.67,5.79247875]
[1762162333342,55.3,175.77,175.7,20.592]
[1762162333528,55.98,175.77,175.67,0.1]
[1762162333741,0.68,175.76,175.69,20.592]
[1762162334033,0.68,175.76,175.67,0.1]
[1762162334434,0.68,175.76,175.69,20.592]
[1762162334733,6.36968532,175.76,175.69,20.592]
[1762162335036,0.68,175.76,175.67,32.73027941]
[1762162335228,0.68,175.75,175.68,6.34580828]
[1762162335431,11.76,175.74,175.68,6.34580828]
[1762162335633,0.68,175.75,175.68,6.34580828]
[1762162335928,11.76,175.74,175.68,6.34580828]
[1762162336121,60.9892553,175.77,175.67,26.38447113]
[1762162336427,12.44,175.76,175.71,26.93780828]
[1762162336828,0.68,175.75,175.71,20.592]
[1762162337528,0.68,175.75,175.71,26.93780828]
[1762162337730,55.3,175.77,175.72,6.34580828]
[1762162338037,0.68,175.79,175.75,6.34580828]
[1762162338957,0.68,175.79,175.74,6.34580828]
[1762162339847,0.68,175.79,175.73,6.34580828]
[1762162341055,0.68,175.79,175.72,26.2827311]
[1762162341355,0.68,175.79,175.73,6.34580828]
[1762162341533,0.68,175.79,175.72,32.62864575]
[1762162342454,0.68,175.79,175.73,6.34580828]
[1762162342755,0.68,175.79,175.72,26.28283747]
[1762162342947,0.68,175.79,175.73,6.34580828]
[1762162343144,0.68,175.79,175.72,20.592]
[1762162343337,0.68,175.79,175.72,26.93780828]
[1762162344342,0.68,175.79,175.72,25.15491006]
[1762162346956,0.68,175.79,175.74,20.592]
[1762162347251,6.3687075,175.79,175.74,20.592]
[1762162347457,55.3,175.78,175.74,20.592]
[1762162347758,55.99,175.78,175.74,20.592]
[1762162347957,0.69,175.77,175.74,20.592]
[1762162350264,0.69,175.77,175.72,20.592]
[1762162351161,0.69,175.77,175.74,20.592]
[1762162351665,12.45,175.77,175.74,20.592]
[1762162352264,0.69,175.76,175.72,30.84575696]
[1762162355265,55.3,175.78,175.74,4.56291006]
[1762162355458,67.06,175.78,175.75,4.56291006]
[1762162355650,55.3,175.78,175.77,4.56291006]
[1762162355847,11.76,175.8,175.76,26.28145891]
[1762162356045,11.76,175.8,175.77,4.56291006]
[1762162356276,12.45,175.8,175.77,4.56291006]
[1762162356661,12.45,175.8,175.76,30.84436897]
[1762162356869,12.45,175.8,175.76,26.28145891]
[1762162357260,0.69,175.82,175.79,20.592]
[1762162357459,12.43,175.82,175.79,20.592]
[1762162357656,11.74,175.82,175.79,25.15491006]
[1762162357968,11.74,175.82,175.79,10.25147186]
[1762162358166,11.74,175.82,175.79,5.6885618]
[1762162358348,0.69,175.81,175.78,20.592]
[1762162359160,11.74,175.82,175.78,20.592]
[1762162359349,12.43,175.82,175.78,28.07160041]
[1762162359844,11.74,175.82,175.78,20.592]
[1762162360045,0.69,175.81,175.76,20.592]
[1762162361163,0.69,175.81,175.72,20.592]
[1762162361977,6.3781007,175.81,175.72,28.07354435]
[1762162362478,0.69,175.8,175.72,28.07354435]
[1762162362969,0.69,175.8,175.76,20.592]
[1762162366950,0.69,175.8,175.72,38.02285299]
[1762162367152,55.99,175.8,175.72,39.8135449]
[1762162367455,61.67830474,175.8,175.72,32.332]
[1762162367770,0.69,175.79,175.72,34.12269191]
[1762162368070,11.74,175.78,175.72,34.12269191]
[1762162368260,11.74,175.78,175.73,1.79069191]
[1762162368456,11.74,175.78,175.74,1.79069191]
[1762162368764,11.74,175.78,175.76,20.592]
[1762162368961,11.74,175.78,175.77,20.592]
[1762162369757,12.43,175.78,175.77,20.592]
[1762162372267,11.74,175.78,175.77,20.592]
[1762162372661,12.43,175.78,175.77,20.592]
[1762162374480,12.43,175.78,175.76,20.592]
[1762162374660,0.69,175.77,175.76,20.592]
[1762162375176,0.69,175.77,175.75,20.592]
[1762162377082,0.69,175.77,175.71,5.69118062]
[1762162377281,0.69,175.77,175.74,20.592]
[1762162377680,11.74,175.76,175.7,1.79069191]
[1762162377865,11.74,175.76,175.7,9.78882769]
[1762162378067,0.7,175.75,175.73,20.592]
[1762162381397,0.7,175.75,175.67,0.1]
[1762162382088,0.7,175.75,175.68,20.592]
[1762162382280,6.39001507,175.75,175.68,20.592]
[1762162382785,0.7,175.74,175.69,20.592]
[1762162382987,0.7,175.76,175.7,22.38269191]
[1762162383281,12.44,175.75,175.7,22.38269191]
[1762162383486,11.74,175.74,175.7,22.38269191]
[1762162383886,12.44,175.74,175.7,22.38269191]
[1762162384793,12.44,175.74,175.7,28.07413587]
[1762162385699,11.74,175.74,175.71,1.79069191]
[1762162386073,12.44,175.74,175.71,1.79069191]
[1762162388890,11.74,175.74,175.71,20.592]
[1762162389394,12.44,175.74,175.71,20.592]
[1762162390189,11.74,175.74,175.71,22.38269191]
[1762162390370,12.44,175.74,175.73,20.592]
[1762162391596,12.44,175.74,175.72,20.592]
[1762162391773,11.74,175.74,175.72,20.592]
[1762162392101,0.7,175.73,175.71,20.592]
[1762162392272,0.7,175.73,175.72,20.592]
[1762162394076,0.7,175.73,175.67,0.1]
[1762162394280,0.7,175.73,175.69,20.592]
[1762162394682,0.7,175.73,175.67,0.1]
[1762162394886,6.39055565,175.73,175.67,0.1]
[1762162395272,0.7,175.72,175.67,0.1]
[1762162396698,11.74,175.71,175.67,0.1]
[1762162396872,12.44,175.72,175.68,20.592]
[1762162397070,0.7,175.72,175.68,20.592]
[1762162397297,0.7,175.71,175.68,20.592]
[1762162399391,0.7,175.71,175.67,0.1]
[1762162400179,55.3,175.7,175.67,0.1]
[1762162400674,12.44,175.69,175.67,0.1]
[1762162400877,67.74,175.69,175.67,0.1]
[1762162401093,0.7,175.68,175.67,0.1]
[1762162401398,0.7,175.68,175.58,1.79069191]
[1762162401586,0.7,175.68,175.58,9.78882769]
[1762162401773,20.592,175.66,175.57,0.1]
[1762162401975,11.74,175.65,175.57,0.1]
[1762162402292,12.44,175.65,175.57,0.1]
[1762162402595,0.7,175.64,175.57,0.1]
[1762162403094,5.69378807,175.63,175.57,0.1]
[1762162403297,11.74,175.62,175.57,0.1]
[1762162403480,12.44,175.62,175.57,0.1]
[1762162403688,0.7,175.61,175.57,0.1]
[1762162404489,6.39447326,175.61,175.57,0.1]
[1762162405002,0.7,175.6,175.57,0.1]
[1762162406594,5.69508514,175.59,175.57,0.1]
[1762162406896,11.74,175.58,175.57,0.1]
[1762162407101,12.43,175.58,175.57,0.1]
[1762162408591,18.12540949,175.58,175.57,0.1]
[1762162411404,17.79,175.57,175.55,0.1]
[1762162411608,20.592,175.56,175.55,0.1]
[1762162411811,21.282,175.56,175.55,0.1]
[1762162413003,12.43,175.56,175.55,0.1]
[1762162413603,0.69,175.56,175.55,0.1]
[1762162413802,12.43,175.56,175.55,0.1]
[1762162415101,34.827985,175.62,175.55,0.1]
[1762162415414,0.69,175.58,175.55,0.1]
[1762162415603,11.74,175.57,175.55,0.1]
[1762162416000,12.43,175.57,175.55,0.1]
[1762162416328,0.69,175.56,175.55,0.1]
[1762162417204,6.38605832,175.56,175.55,0.1]
[1762162425026,0.69,175.55,175.51,0.1]
[1762162425234,37.692,175.53,175.51,0.1]
[1762162425398,37.04074748,175.52,175.42,0.3]
[1762162425600,11.74,175.51,175.42,0.3]
[1762162425812,12.43,175.51,175.4,9.78882769]
[1762162426020,11.74,175.5,175.46,0.3]
[1762162427817,11.74,175.49,175.46,0.3]
[1762162428423,11.74,175.49,175.44,0.3]
[1762162428617,11.74,175.49,175.43,23.3983546]
[1762162428816,11.74,175.49,175.47,0.3]
[1762162429114,11.74,175.49,175.45,0.3]
[1762162430615,11.74,175.49,175.45,2.8063546]
[1762162430816,11.74,175.49,175.46,0.3]
[1762162432529,11.74,175.49,175.46,5.99927242]
[1762162433523,11.74,175.49,175.46,0.3]
[1762162434535,11.74,175.49,175.46,5.99924257]
[1762162434911,11.74,175.49,175.46,0.3]
[1762162435430,11.74,175.49,175.45,8.50592445]
[1762162435431,0.69,175.55,175.45,2.8063546]
[1762162435612,0.69,175.55,175.48,8.90494605]
[1762162435805,11.74,175.54,175.48,8.90494605]
[1762162436004,11.74,175.54,175.49,0.3]
[1762162436231,12.43,175.54,175.49,0.3]
[1762162436932,11.74,175.54,175.49,0.3]
[1762162437113,0.68,175.53,175.48,0.1]
[1762162437314,0.68,175.53,175.48,20.692]
[1762162438016,0.68,175.53,175.48,20.992]
[1762162438519,0.68,175.53,175.48,20.692]
[1762162438713,11.74,175.54,175.49,0.3]
[1762162438915,0.68,175.53,175.48,20.692]
[1762162440203,0.68,175.53,175.48,26.39059841]
[1762162440405,11.72,175.52,175.49,0.3]
[1762162440611,0.68,175.59,175.51,2.8063546]
[1762162440917,22.79449838,175.61,175.51,2.8063546]
[1762162440918,12.4,175.58,175.51,2.8063546]
[1762162441118,12.4,175.58,175.51,3.1063546]
[1762162441317,0.68,175.57,175.51,3.1063546]
[1762162441724,0.68,175.57,175.51,0.3]
[1762162441913,0.68,175.57,175.51,2.8063546]
[1762162442109,0.68,175.57,175.49,9.78882769]
[1762162442110,6.37594545,175.57,175.49,0.3]
[1762162442634,0.68,175.56,175.49,20.892]
[1762162443015,0.68,175.56,175.48,8.60496307]
[1762162443016,0.68,175.56,175.48,0.1]
[1762162444010,20.592,175.54,175.48,0.1]
[1762162444221,18.09703184,175.53,175.48,0.1]
[1762162444727,0.68,175.52,175.48,0.1]
[1762162445643,20.592,175.49,175.48,0.1]
[1762162445822,32.312,175.49,175.48,0.1]
[1762162446010,12.4,175.49,175.48,0.1]
[1762162446412,17.78,175.49,175.48,0.1]
[1762162446714,0.68,175.49,175.48,0.1]
[1762162446911,12.4,175.49,175.48,0.1]
[1762162448618,18.09833038,175.49,175.48,0.1]
[1762162450738,12.4,175.49,175.48,0.1]
[1762162451439,17.1,175.52,175.48,0.1]
[1762162451739,12.4,175.51,175.48,0.1]
[1762162452637,17.1,175.52,175.48,0.1]
[1762162452822,0.68,175.53,175.48,0.4]
[1762162453143,11.72,175.51,175.48,3.2063546]
[1762162453328,11.72,175.51,175.48,0.4]
[1762162453524,11.72,175.51,175.48,0.1]
[1762162453734,12.4,175.51,175.48,0.1]
[1762162453929,0.68,175.5,175.48,0.1]
[1762162454129,11.72,175.51,175.48,0.1]
[1762162454641,11.72,175.5,175.48,0.4]
[1762162455142,11.72,175.5,175.49,0.3]
[1762162455536,11.72,175.5,175.49,20.892]
[1762162455739,11.72,175.52,175.49,3.1063546]
[1762162456037,14.23750509,175.6,175.51,23.3983546]
[1762162456038,0.68,175.58,175.51,23.3983546]
[1762162456239,11.72,175.57,175.51,20.592]
[1762162456420,11.72,175.57,175.51,23.6983546]
[1762162457021,12.4,175.57,175.51,23.6983546]
[1762162457258,12.4,175.57,175.51,8.80396533]
[1762162457450,12.4,175.57,175.51,29.39596533]
[1762162457946,12.4,175.57,175.51,23.6983546]
[1762162458136,12.4,175.57,175.51,20.892]
[1762162458444,11.72,175.57,175.52,0.3]
[1762162458744,11.72,175.56,175.52,8.80367376]
[1762162459241,43.38639464,175.62,175.52,8.50367376]
[1762162459447,0.68,175.6,175.53,3.1063546]
[1762162459846,0.68,175.6,175.54,3.1063546]
[1762162460037,0.68,175.6,175.54,0.3]
[1762162460346,11.72,175.59,175.54,0.3]
[1762162460554,11.72,175.59,175.52,3.1063546]
[1762162460855,12.4,175.59,175.52,3.1063546]
[1762162461049,0.68,175.58,175.51,29.09597774]
[1762162461240,0.68,175.58,175.51,29.09598726]
[1762162461648,11.72,175.59,175.53,2.8063546]
[1762162461954,11.72,175.58,175.53,2.8063546]
[1762162462325,12.4,175.58,175.53,3.1063546]
[1762162462530,12.4,175.58,175.53,0.3]
[1762162463248,0.68,175.58,175.53,0.3]
[1762162463428,11.72,175.57,175.52,2.8063546]
[1762162464130,12.4,175.57,175.52,2.8063546]
[1762162464330,11.72,175.57,175.51,26.58963266]
[1762162464545,0.68,175.56,175.52,2.8063546]
[1762162464846,11.72,175.57,175.52,8.50364285]
[1762162465061,0.68,175.65,175.56,2.8063546]
[1762162465240,0.68,175.65,175.59,2.8063546]
[1762162465429,0.68,175.68,175.62,2.8063546]
[1762162465635,11.72,175.67,175.64,2.8063546]
[1762162465950,0.88,175.71,175.64,2.8063546]
[1762162465951,11.72,175.66,175.64,2.8063546]
[1762162466148,11.72,175.67,175.63,2.8063546]
[1762162466357,11.72,175.67,175.62,22.38595786]
[1762162466657,12.42,175.67,175.62,2.09395786]
[1762162466954,12.42,175.67,175.62,7.78800416]
[1762162467449,11.72,175.67,175.63,2.09395786]
[1762162467655,11.72,175.67,175.63,1.79395786]
[1762162468050,12.42,175.67,175.63,1.79395786]
[1762162468244,12.42,175.67,175.64,20.592]
[1762162468554,12.42,175.67,175.62,22.68595786]
[1762162469132,12.42,175.67,175.63,1.79395786]
[1762162469344,11.72,175.67,175.63,1.79395786]
[1762162469541,11.72,175.67,175.64,1.79395786]
[1762162469940,0.7,175.69,175.63,0.3]
[1762162469941,11.72,175.68,175.63,1.79395786]
[1762162470454,0.7,175.67,175.64,20.592]
[1762162471342,11.72,175.68,175.63,20.592]
[1762162471659,12.42,175.68,175.63,22.38595786]
[1762162471847,0.9,175.71,175.65,22.38595786]
[1762162472049,12.42,175.7,175.65,22.38595786]
[1762162472240,12.42,175.7,175.66,1.79395786]
[1762162472439,12.42,175.7,175.65,22.68595786]
[1762162473447,0.7,175.7,175.65,22.38595786]
[1762162473643,0.7,175.7,175.65,22.68595786]
[1762162473854,12.42,175.7,175.65,22.68595786]
[1762162474359,11.72,175.7,175.66,0.3]
[1762162474544,0.7,175.69,175.65,20.592]
[1762162474854,0.7,175.69,175.64,20.592]
[1762162475958,6.39197106,175.69,175.64,20.592]
[1762162476871,6.39197106,175.69,175.59,1.79395786]
[1762162477038,0.7,175.68,175.58,9.78882769]
[1762162477238,0.7,175.68,175.61,20.592]
[1762162477958,5.6924916,175.67,175.61,20.592]
[1762162478364,0.7,175.66,175.6,20.592]
[1762162478540,11.7,175.65,175.6,20.592]
[1762162478937,0.7,175.64,175.55,11.88278555]
[1762162479239,0.7,175.64,175.58,20.592]
[1762162480576,6.39250106,175.67,175.59,0.3]
[1762162480741,12.4,175.66,175.59,2.09395786]
[1762162480942,12.4,175.66,175.59,0.3]
[1762162481249,0.7,175.65,175.59,0.3]
[1762162481558,0.7,175.65,175.59,20.592]
[1762162481756,0.7,175.65,175.57,28.38167283]
[1762162481956,11.7,175.64,175.58,1.79395786]
[1762162482350,12.4,175.64,175.57,28.38167283]
[1762162482955,0.7,175.63,175.57,28.38167283]
[1762162483668,0.7,175.63,175.57,20.592]
[1762162485166,0.7,175.63,175.57,22.38595786]
[1762162485865,0.7,175.63,175.57,28.08158341]
[1762162486668,0.7,175.63,175.57,26.28762555]
[1762162487043,0.7,175.63,175.57,28.08158341]
[1762162487882,11.7,175.64,175.58,2.09395786]
[1762162488180,12.4,175.64,175.58,2.09395786]
[1762162488355,0.7,175.63,175.58,1.79395786]
[1762162488772,0.7,175.63,175.57,28.08158341]
[1762162488976,0.7,175.63,175.57,20.592]
[1762162488977,6.39380821,175.63,175.57,20.592]
[1762162489158,6.39380821,175.63,175.52,1.79395786]
[1762162489360,0.7,175.62,175.55,20.592]
[1762162489765,0.7,175.62,175.52,5.99735642]
[1762162489980,0.7,175.62,175.5,17.58058786]
[1762162490180,0.7,175.62,175.53,20.592]
[1762162491358,5.69443653,175.61,175.53,20.592]
[1762162491787,0.7,175.6,175.53,20.592]
[1762162492581,0.7,175.6,175.53,22.68595786]
[1762162492989,0.7,175.6,175.53,22.38595786]
[1762162493581,6.39483321,175.6,175.53,22.38595786]
[1762162494184,0.7,175.61,175.54,2.09395786]
[1762162494966,0.7,175.61,175.54,1.79395786]
[1762162495173,31.34146897,175.67,175.55,2.09395786]
[1762162495376,12.4,175.65,175.56,1.79395786]
[1762162495604,5.6934639,175.64,175.57,1.79395786]
[1762162495782,0.7,175.64,175.57,1.79395786]
[1762162495958,12.4,175.63,175.57,1.79395786]
[1762162496384,0.7,175.62,175.57,1.79395786]
[1762162496681,0.7,175.62,175.56,0.3]
[1762162496982,0.7,175.62,175.57,1.79395786]
[1762162497681,0.7,175.62,175.52,20.592]
[1762162497682,20.6294059,175.62,175.52,20.592]
[1762162497985,20.6294059,175.62,175.53,20.592]
[1762162498186,0.66,175.61,175.53,20.592]
[1762162498893,5.69476082,175.6,175.54,20.592]
[1762162499268,0.66,175.59,175.54,20.592]
[1762162499467,11.7,175.58,175.54,20.592]
[1762162500276,0.66,175.61,175.54,1.79395786]
[1762162500478,11.7,175.6,175.56,1.79395786]
[1762162500860,11.7,175.6,175.56,2.09395786]
[1762162501684,11.7,175.6,175.56,1.79395786]
[1762162501878,11.7,175.6,175.55,1.79395786]
[1762162502195,0.66,175.59,175.54,7.49064489]
[1762162502393,11.7,175.6,175.54,7.49064489]
[1762162502691,11.7,175.6,175.55,1.79395786]
[1762162503090,0.66,175.59,175.54,1.79395786]
[1762162503468,11.7,175.6,175.55,1.79395786]
[1762162503777,11.7,175.6,175.54,1.79395786]
[1762162503973,0.66,175.59,175.54,1.79395786]
[1762162504489,0.66,175.59,175.53,30.86162855]
[1762162504701,0.66,175.59,175.51,4.5727121]
[1762162504869,5.69540949,175.58,175.49,5.69831723]
[1762162505075,0.66,175.57,175.52,20.592]
[1762162506094,0.66,175.57,175.5,4.5727121]
[1762162506415,0.66,175.57,175.51,25.1647121]
[1762162506889,0.66,175.57,175.52,20.592]
[1762162506890,6.35589123,175.57,175.52,20.592]
[1762162507283,0.66,175.56,175.52,20.592]
[1762162507465,11.7,175.55,175.52,20.592]
[1762162507671,11.7,175.55,175.48,0.1]
[1762162507874,0.66,175.54,175.49,20.592]
[1762162508072,0.66,175.54,175.48,0.1]
[1762162508487,0.66,175.54,175.48,4.6727121]
[1762162509795,6.35674023,175.54,175.48,0.1]
[1762162509988,37.70850848,175.54,175.48,0.1]
[1762162510298,0.66,175.53,175.48,0.1]
[1762162510877,11.7,175.52,175.48,0.1]
[1762162511273,0.66,175.51,175.48,0.1]
[1762162512789,0.66,175.54,175.48,5.79865229]
[1762162512996,11.7,175.53,175.49,4.5727121]
[1762162513190,11.7,175.53,175.48,4.6727121]
[1762162513394,12.36,175.53,175.48,4.6727121]
[1762162513886,0.66,175.52,175.48,4.6727121]
[1762162514083,0.66,175.52,175.48,0.1]
[1762162514497,11.7,175.51,175.48,0.1]
[1762162514998,12.36,175.51,175.48,0.1]
[1762162516871,0.66,175.53,175.48,0.1]
[1762162517078,11.7,175.51,175.48,0.1]
[1762162517279,5.69604797,175.57,175.49,4.5727121]
[1762162517487,11.7,175.56,175.51,4.5727121]
[1762162517804,11.7,175.56,175.5,4.5727121]
[1762162517989,12.36,175.56,175.5,4.5727121]
[1762162518189,0.66,175.55,175.49,5.99820732]
[1762162518502,11.7,175.54,175.5,4.5727121]
[1762162519592,11.7,175.54,175.49,5.99820732]
[1762162519593,0.66,175.53,175.48,20.692]
[1762162519898,5.69735642,175.52,175.48,0.1]
[1762162520079,6.35704363,175.53,175.48,0.1]
[1762162520279,0.66,175.52,175.48,0.1]
[1762162521082,0.66,175.55,175.5,4.5727121]
[1762162521281,11.7,175.54,175.51,4.5727121]
[1762162521503,11.7,175.54,175.5,4.5727121]
[1762162522099,11.7,175.54,175.5,10.27068702]
[1762162522286,11.7,175.55,175.52,4.5727121]
[1762162522481,11.7,175.55,175.54,4.5727121]
[1762162522682,11.7,175.55,175.53,4.5727121]
[1762162523186,11.7,175.55,175.52,4.5727121]
[1762162523897,11.7,175.55,175.51,0.3]
[1762162523898,12.36,175.55,175.51,4.5727121]
[1762162524093,0.66,175.54,175.48,25.2647121]
[1762162524406,6.35679293,175.54,175.48,20.692]
[1762162524581,6.35679293,175.54,175.48,0.1]
[1762162524907,0.66,175.53,175.48,0.1]
[1762162525408,11.7,175.55,175.5,4.5727121]
[1762162525597,11.7,175.54,175.5,4.5727121]
[1762162526103,11.7,175.54,175.49,20.892]
[1762162526104,0.68,175.53,175.49,20.592]
[1762162526307,0.68,175.53,175.48,20.692]
[1762162526691,0.68,175.53,175.49,20.592]
[1762162526892,6.37710947,175.53,175.48,20.692]
[1762162527085,6.37710947,175.53,175.48,0.1]
[1762162527286,0.69,175.52,175.48,0.1]
[1762162528191,0.69,175.56,175.49,4.5727121]
[1762162528506,11.7,175.55,175.48,27.36485221]
[1762162528806,0.69,175.54,175.48,27.36485221]
[1762162529019,0.69,175.54,175.48,33.06347827]
[1762162529195,0.69,175.54,175.49,20.592]
[1762162530116,0.69,175.54,175.48,0.1]
[1762162530614,6.38689568,175.54,175.48,0.1]
[1762162530910,0.69,175.53,175.48,0.1]
[1762162532613,5.69735642,175.52,175.48,0.1]
[1762162532809,0.69,175.53,175.48,0.1]
[1762162533002,11.7,175.52,175.48,27.36485221]
[1762162533206,0.69,175.58,175.51,6.37285221]
[1762162533408,22.80779588,175.63,175.54,6.37285221]
[1762162533715,11.7,175.62,175.55,6.37285221]
[1762162533916,12.39,175.62,175.54,6.37285221]
[1762162534218,0.69,175.61,175.54,20.592]
[1762162534793,5.69476082,175.6,175.53,20.592]
[1762162535319,0.69,175.59,175.53,20.592]
[1762162535701,0.69,175.59,175.54,20.592]
[1762162536809,6.38523258,175.59,175.51,26.2895665]
[1762162537314,0.69,175.58,175.51,32.66241871]
[1762162537620,11.7,175.57,175.51,32.66241871]
[1762162537823,11.7,175.57,175.51,20.592]
[1762162538001,0.69,175.56,175.51,20.592]
[1762162538341,0.69,175.56,175.51,26.28957007]
[1762162539010,0.69,175.56,175.51,20.592]
[1762162539714,0.69,175.56,175.48,0.1]
[1762162539715,5.69638279,175.55,175.48,0.1]
[1762162540123,0.69,175.54,175.5,20.592]
[1762162541327,0.69,175.56,175.5,20.592]
[1762162541527,11.7,175.55,175.5,20.592]
[1762162542015,12.39,175.55,175.5,26.28989619]
[1762162542207,11.7,175.55,175.5,20.592]
[1762162542403,0.69,175.54,175.5,20.592]
[1762162545012,0.69,175.54,175.49,20.592]
[1762162545225,6.38688262,175.54,175.49,20.592]
[1762162545426,0.69,175.54,175.49,20.592]
[1762162545622,0.69,175.53,175.48,0.1]
[1762162547229,20.62971918,175.53,175.48,0.1]
[1762162547607,0.69,175.52,175.48,0.1]
[1762162548643,5.69800569,175.5,175.48,0.1]
[1762162549109,0.69,175.49,175.48,0.1]
[1762162549815,11.7,175.49,175.48,0.1]
[1762162550209,12.39,175.49,175.48,0.1]
[1762162551621,11.7,175.49,175.48,0.1]
[1762162552221,12.39,175.49,175.48,0.1]
[1762162553633,12.39,175.49,175.43,32.96500133]
[1762162553634,17.11,175.48,175.34,6.37285221]
[1762162553819,17.8,175.48,175.35,0.4]
[1762162554019,0.69,175.47,175.38,20.592]
[1762162554714,11.72,175.46,175.38,20.992]
[1762162554914,11.72,175.45,175.4,20.592]
[1762162555325,11.72,175.44,175.4,20.592]
[1762162555726,11.72,175.43,175.41,0.4]
[1762162556038,11.72,175.42,175.41,0.4]
[1762162556213,0.69,175.48,175.41,0.4]
[1762162556415,11.72,175.47,175.41,0.4]
[1762162556735,11.72,175.47,175.4,26.2931747]
[1762162556941,11.72,175.47,175.4,20.592]
[1762162557129,0.72,175.46,175.4,20.592]
[1762162558517,11.72,175.47,175.4,26.29312785]